bitfinex-derivatives/quotes_BNBF0:USTF0_20250425
["timestamp","ask_amount","ask_price","bid_price","bid_amount"]
[1745582704689,1.13233507,605.83,605.01,0.30333223]
[1745582705089,1.13233507,605.82,605.01,0.30333223]
[1745582706091,1.13233507,605.81,605.01,0.30333223]
[1745582706391,1.13233507,605.8,605.0,1.0505215]
[1745582706593,1.13233507,605.8,605.01,0.30329081]
[1745582707094,1.13233507,605.79,605.01,0.30329081]
[1745582707392,1.13233507,605.78,605.03,1.0505215]
[1745582707593,1.13233507,605.78,605.04,0.30329081]
[1745582708088,1.13233507,605.77,605.04,0.30329081]
[1745582708596,0.28738124,606.91,605.04,0.30329081]
[1745582708597,1.13233507,605.76,605.04,0.30329081]
[1745582709295,1.13233507,605.75,605.04,0.30329081]
[1745582709493,1.13233507,605.74,605.03,1.0505215]
[1745582709694,1.13233507,605.74,605.04,0.30329223]
[1745582710195,1.13233507,605.73,605.04,0.30329223]
[1745582710389,1.13233507,605.73,604.91,0.30329223]
[1745582710594,1.13233507,605.72,604.91,0.30329223]
[1745582711091,1.13233507,605.72,604.9,0.28739429]
[1745582711290,1.13233507,605.72,604.91,0.30329347]
[1745582711489,0.28739429,606.87,604.91,0.30329347]
[1745582711490,1.13233507,605.71,604.91,0.30329347]
[1745582712196,1.13233507,605.7,604.91,0.30329347]
[1745582713095,1.13233507,605.69,604.91,0.30329347]
[1745582713493,1.13233507,605.68,604.91,0.30329347]
[1745582714101,1.13233507,605.67,604.9,0.28739429]
[1745582714398,1.13233507,605.67,604.91,0.30336767]
[1745582714593,1.13233507,605.66,604.91,0.30336767]
[1745582715191,1.13233507,605.65,604.91,0.30336767]
[1745582715691,1.13233507,605.64,604.92,0.30336767]
[1745582715992,1.13233507,605.63,604.93,0.30336767]
[1745582716196,1.13233507,605.63,604.94,0.30336767]
[1745582716496,1.13233507,605.62,604.95,0.30336767]
[1745582716698,1.13233507,605.62,604.96,0.30336767]
[1745582716897,1.13233507,605.62,604.97,0.30336767]
[1745582717093,1.13233507,605.61,604.98,0.30336767]
[1745582717395,1.13233507,605.61,604.99,0.30336767]
[1745582717590,1.13233507,605.61,604.91,0.30336767]
[1745582717794,1.13233507,605.61,604.92,0.30336767]
[1745582717997,1.13233507,605.6,604.91,0.30336767]
[1745582718197,1.13233507,605.6,604.92,0.30336767]
[1745582718397,1.13233507,605.6,604.93,0.30336767]
[1745582718601,1.13233507,605.6,604.91,0.30336767]
[1745582718898,1.13233507,605.59,604.92,0.30335086]
[1745582719198,1.13233507,605.59,604.93,0.30335086]
[1745582719392,1.13233507,605.58,604.94,0.30335086]
[1745582719699,0.28744889,606.77,604.95,0.30335086]
[1745582719700,1.13233507,605.57,604.95,0.30335086]
[1745582719892,1.13233507,605.57,604.91,0.30335086]
[1745582720096,1.13233507,605.57,604.92,0.30335086]
[1745582720291,1.13233507,605.57,604.93,0.30334399]
[1745582720597,1.13233507,605.56,604.94,0.30334399]
[1745582720797,1.13233507,605.56,604.95,0.30334399]
[1745582721098,1.13233507,606.76,604.96,0.30334399]
[1745582721297,1.13233507,606.76,604.97,0.30334399]
[1745582721607,1.13233507,606.75,604.98,0.30334399]
[1745582721798,1.13233507,606.75,604.9,0.28745958]
[1745582721998,1.13233507,606.74,604.91,0.30332909]
[1745582722992,1.13233507,606.73,604.91,0.30332909]
[1745582723299,1.13233507,606.72,604.9,0.28745958]
[1745582723494,1.13233507,606.72,604.91,0.30331308]
[1745582724097,1.13233507,606.71,604.91,0.30331308]
[1745582724596,1.13233507,606.71,604.72,1.0505215]
[1745582724597,1.13233507,606.7,604.92,0.30331308]
[1745582724797,1.13233507,606.7,604.9,0.28730176]
[1745582725098,1.13233507,606.7,604.91,0.30330667]
[1745582725298,1.13233507,606.69,604.91,0.30330667]
[1745582725496,1.13233507,606.68,604.91,0.30330667]
[1745582726196,1.13233507,606.67,604.91,0.30330667]
[1745582726392,1.13233507,606.67,604.9,0.28730176]
[1745582726598,1.13233507,606.67,604.91,0.30331117]
[1745582726792,1.13233507,606.66,604.91,0.30331117]
[1745582727397,1.13233507,606.65,604.92,0.30331117]
[1745582727601,1.13233507,606.65,604.93,0.30331117]
[1745582727800,1.13233507,606.65,604.94,0.30331117]
[1745582727996,1.13233507,606.64,604.91,0.30331117]
[1745582728195,1.13233507,606.64,604.92,0.30331117]
[1745582728399,1.13233507,606.63,604.93,0.30331117]
[1745582728601,1.13233507,606.63,604.94,0.30331117]
[1745582728796,1.13233507,606.62,604.91,0.30331117]
[1745582728999,1.13233507,606.62,604.92,0.30331117]
[1745582729194,1.13233507,606.62,604.91,1.47731117]
[1745582729395,1.13233507,606.61,604.92,0.30331117]
[1745582729800,1.13233507,606.6,604.92,0.30331117]
[1745582730198,1.13233507,606.59,604.92,0.30331117]
[1745582730599,1.13233507,606.58,604.92,0.30331117]
[1745582730999,1.13233507,606.57,604.92,0.30331117]
[1745582731807,1.13233507,606.56,604.92,0.30331117]
[1745582732507,1.13233507,606.56,604.91,1.4613409]
[1745582732707,1.13233507,606.55,604.92,0.30335438]
[1745582733111,1.13233507,606.54,604.92,0.30335438]
[1745582733505,1.13233507,606.53,604.92,0.30335438]
[1745582734313,1.13233507,606.52,604.92,0.30335438]
[1745582735019,1.13233507,606.52,604.92,1.54235438]
[1745582735311,0.28734564,606.75,604.93,0.30335438]
[1745582735312,1.13233507,606.51,604.93,0.30335438]
[1745582735911,1.13233507,606.5,604.93,0.30335438]
[1745582736412,1.13233507,606.49,604.93,0.30335438]
[1745582736806,1.13233507,606.49,604.92,1.52635276]
[1745582737007,1.13233507,606.48,604.92,1.52635276]
[1745582737908,1.13233507,606.47,604.92,1.52635276]
[1745582738413,1.13233507,606.46,604.92,1.52635276]
[1745582739114,1.13233507,606.45,604.92,1.52635276]
[1745582739311,1.13233507,606.45,604.92,1.239]
[1745582739507,1.13233507,606.44,604.92,1.239]
[1745582739713,1.13233507,606.43,604.92,1.239]
[1745582740314,1.13233507,606.42,604.92,1.239]
[1745582740513,1.13233507,606.41,604.92,1.52639904]
[1745582741117,1.13233507,606.4,604.92,1.52639904]
[1745582741811,1.13233507,606.39,604.92,1.52639904]
[1745582742317,1.13233507,606.39,604.92,1.239]
[1745582742518,1.13233507,606.38,604.92,1.52640379]
[1745582742916,1.13233507,606.37,604.92,1.52640379]
[1745582743526,1.13233507,606.36,604.92,1.52640379]
[1745582743718,1.13233507,606.35,604.92,1.52640379]
[1745582744423,1.13233507,606.34,604.92,1.52640379]
[1745582744724,1.13233507,606.33,604.92,1.52640379]
[1745582744925,1.13233507,606.32,604.92,1.52640379]
[1745582745227,1.13233507,606.31,604.92,1.239]
[1745582745623,1.13233507,606.3,604.92,1.239]
[1745582746324,1.13233507,606.29,604.92,1.239]
[1745582746524,1.13233507,606.29,604.92,1.52641447]
[1745582746725,1.13233507,606.28,604.92,2.62341447]
[1745582747226,1.13233507,606.27,604.92,2.62341447]
[1745582747527,1.13233507,606.26,604.92,2.62341447]
[1745582748227,1.13233507,606.25,604.92,2.336]
[1745582749426,1.13233507,606.24,604.92,2.336]
[1745582749621,1.13233507,606.23,604.92,2.62341328]
[1745582750427,1.13233507,606.22,604.92,2.62341328]
[1745582751326,1.13233507,606.21,604.92,2.336]
[1745582751527,1.13233507,606.2,604.92,2.336]
[1745582751726,1.13233507,606.2,604.92,2.62341684]
[1745582751924,1.13233507,606.19,604.92,2.62341684]
[1745582752426,1.13233507,606.18,604.92,2.62341684]
[1745582752723,1.13233507,606.17,604.92,2.62341684]
[1745582753125,1.13233507,606.16,604.92,2.62341684]
[1745582753629,1.13233507,606.15,604.92,2.62341684]
[1745582754230,1.13233507,606.14,604.92,2.336]
[1745582754532,1.13233507,606.14,604.92,2.62342515]
[1745582754929,1.13233507,606.13,604.92,2.62342515]
[1745582755429,1.13233507,606.12,604.92,2.62342515]
[1745582755832,1.13233507,606.11,604.92,2.62342515]
[1745582756131,1.13233507,606.1,604.92,2.62342515]
[1745582756729,1.13233507,606.09,604.92,2.62342515]
[1745582757024,1.13233507,606.08,604.92,2.62342515]
[1745582757230,1.13233507,606.08,604.92,2.336]
[1745582757627,1.13233507,606.07,604.92,2.62344058]
[1745582758232,1.13233507,606.06,604.92,2.62344058]
[1745582758731,1.13233507,606.05,604.92,2.62344058]
[1745582759034,1.13233507,606.04,604.92,2.62344058]
[1745582759730,1.13233507,606.03,604.92,2.62344058]
[1745582760336,1.13233507,606.03,604.92,2.336]
[1745582760727,1.13233507,606.02,604.92,2.336]
[1745582761137,1.13233507,606.01,604.92,2.336]
[1745582761532,1.13233507,606.01,604.92,3.171]
[1745582761727,1.13233507,606.01,604.92,3.45843227]
[1745582761931,1.13233507,606.0,604.93,0.30340137]
[1745582762132,1.13233507,606.0,604.92,2.21943227]
[1745582762534,1.13233507,605.99,604.92,2.21943227]
[1745582762735,1.13233507,605.99,604.93,0.30340156]
[1745582763437,1.13233507,605.98,604.93,0.30340156]
[1745582764036,1.13233507,605.97,604.92,2.21943227]
[1745582764237,1.13233507,605.97,604.93,0.30340058]
[1745582764439,1.13233507,605.96,604.93,0.30340058]
[1745582764735,1.13233507,605.95,604.93,0.30340058]
[1745582765237,1.13233507,605.94,604.93,0.30340058]
[1745582765434,1.13233507,605.94,604.93,1.33240058]
[1745582765631,1.13233507,605.93,604.94,0.30340058]
[1745582766242,1.13233507,605.92,604.94,0.30340058]
[1745582766736,1.13233507,605.91,604.94,0.30340058]
[1745582767237,1.13233507,605.9,604.94,0.30340058]
[1745582767636,1.13233507,605.89,604.94,0.30340058]
[1745582768236,1.13233507,605.88,604.94,0.30340058]
[1745582768737,1.13233507,605.87,604.94,0.30340058]
[1745582769036,1.13233507,605.86,604.94,0.30340058]
[1745582769837,1.13233507,605.85,604.93,1.31641921]
[1745582770439,1.13233507,605.85,604.94,0.30330272]
[1745582770831,1.13233507,605.84,604.94,0.30330272]
[1745582771139,1.25820987,607.19,604.94,0.30330272]
[1745582771140,1.13233507,605.83,604.94,0.30330272]
[1745582771537,1.13233507,605.82,604.94,0.30330272]
[1745582772039,1.13233507,605.81,604.94,0.30330272]
[1745582772432,1.13233507,605.81,604.95,0.92]
[1745582772634,1.13233507,605.81,604.96,0.30330272]
[1745582772833,1.13233507,605.8,604.96,0.30330272]
[1745582773233,1.13233507,605.79,604.96,0.30330272]
[1745582773738,1.13233507,605.78,604.96,0.30330272]
[1745582774038,2.1407043,607.94,604.96,0.30330272]
[1745582774039,1.13233507,605.77,604.96,0.30330272]
[1745582774538,1.25820987,607.49,604.96,0.30330272]
[1745582774741,0.287367,607.02,604.96,0.30330272]
[1745582775037,1.13808207,607.01,604.95,0.92]
[1745582775239,1.13808207,607.01,604.96,0.30322954]
[1745582775538,1.13808207,607.0,604.96,0.30322954]
[1745582776038,1.13808207,606.99,604.96,0.30322954]
[1745582776240,1.13808207,606.99,604.99,1.0505215]
[1745582776437,1.13808207,606.99,605.0,0.30322954]
[1745582776635,1.13808207,606.99,605.0,1.14722954]
[1745582776838,1.13808207,606.98,605.01,0.30322954]
[1745582777240,1.13808207,606.97,605.01,0.30322954]
[1745582777841,1.13808207,606.96,605.01,0.30322954]
[1745582778238,1.13808207,606.96,605.02,0.30325943]
[1745582778440,1.13808207,606.95,605.01,0.30325943]
[1745582778643,1.13808207,606.95,605.02,0.30325943]
[1745582778845,1.13808207,606.94,605.01,0.30325943]
[1745582779345,1.13808207,606.93,605.01,0.30325943]
[1745582779743,1.13808207,606.92,605.01,0.30325943]
[1745582780239,1.13808207,606.91,605.01,0.30325943]
[1745582780845,1.13808207,606.9,605.01,0.30325943]
[1745582781037,0.28716307,607.02,605.01,0.30325943]
[1745582781038,1.13808207,606.89,605.01,0.30325943]
[1745582781738,1.13808207,606.88,605.01,0.30325943]
[1745582782044,1.13808207,606.87,605.01,0.30325943]
[1745582782245,1.13808207,606.86,605.01,0.30325943]
[1745582782548,1.425353,606.86,605.01,0.30325943]
[1745582782741,1.13808207,606.85,605.01,0.30325943]
[1745582782940,1.13808207,606.85,605.02,0.30329821]
[1745582783144,1.13808207,606.84,605.03,0.30329821]
[1745582783446,1.13808207,606.83,605.04,0.30329821]
[1745582783640,1.13808207,606.83,605.01,0.30329821]
[1745582784146,1.13808207,606.82,605.01,0.30329821]
[1745582785047,1.13808207,606.81,605.01,0.30329821]
[1745582785347,1.13808207,606.81,605.02,0.30329821]
[1745582785647,1.13808207,606.8,605.03,0.30329821]
[1745582785844,1.13808207,606.8,605.04,0.30329821]
[1745582786247,1.13808207,606.8,605.01,0.30329821]
[1745582786441,1.13808207,606.79,605.0,0.844]
[1745582786642,1.13808207,606.79,605.01,0.30325839]
[1745582786845,1.13808207,606.78,605.02,0.30325839]
[1745582787046,1.13808207,606.78,605.01,0.30325839]
[1745582787245,1.13808207,606.77,605.02,0.30325839]
[1745582787446,1.13808207,606.77,605.01,0.30325839]
[1745582787949,1.13808207,606.76,605.01,0.30325839]
[1745582788350,1.13808207,606.75,605.01,0.30325839]
[1745582788850,1.13808207,606.74,605.01,0.30325839]
[1745582789549,1.13808207,606.73,605.01,0.30325839]
[1745582790350,1.13808207,606.72,605.01,0.30325839]
[1745582791251,1.13808207,606.71,605.01,0.30325839]
[1745582791845,1.13808207,606.7,605.01,0.30325839]
[1745582792049,1.13808207,606.69,605.01,0.30325839]
[1745582792949,1.13808207,606.68,605.01,0.30325839]
[1745582793251,1.13808207,606.67,605.01,0.30325839]
[1745582793745,1.13808207,606.66,605.01,0.30325839]
[1745582793950,1.13808207,606.66,605.02,0.802]
[1745582794146,1.13808207,606.65,605.03,0.30325839]
[1745582795251,1.13808207,606.64,605.03,0.30325839]
[1745582795651,1.13808207,606.63,605.03,0.30325839]
[1745582795952,1.13808207,606.62,605.03,0.30325839]
[1745582796654,1.13808207,606.61,605.03,1.35377989]
[1745582796853,1.13808207,606.61,605.04,0.30325839]
[1745582797254,1.13808207,606.61,605.05,0.30325839]
[1745582797456,1.13808207,606.61,605.06,0.30325839]
[1745582797658,1.13808207,606.61,605.04,0.30325839]
[1745582797857,1.13808207,606.61,605.06,0.759]
[1745582798059,1.13808207,606.6,605.07,0.30325839]
[1745582798560,1.13808207,606.6,605.08,0.30325839]
[1745582798759,1.13808207,606.59,605.07,0.30325839]
[1745582798958,1.13808207,606.59,605.08,0.30325839]
[1745582799159,1.13808207,606.58,605.14,1.0505215]
[1745582799354,1.13808207,606.58,605.15,0.30325839]
[1745582800060,1.13808207,606.57,605.15,0.30325839]
[1745582800461,1.13808207,606.56,605.15,0.30325839]
[1745582800860,1.13808207,606.55,605.15,0.30325839]
[1745582801155,1.13808207,606.55,605.17,1.0505215]
[1745582801357,1.13808207,606.55,605.18,0.30325839]
[1745582801553,1.13808207,606.54,605.18,0.30325839]
[1745582801755,1.13808207,606.54,605.19,0.30325839]
[1745582801958,1.13808207,606.53,605.18,0.30325839]
[1745582802160,1.13808207,606.53,605.19,0.30325839]
[1745582802361,1.13808207,606.53,605.18,0.30325839]
[1745582802556,1.13808207,606.53,605.17,1.0505215]
[1745582802557,1.13808207,606.52,605.19,0.30325839]
[1745582802760,1.13808207,606.52,605.18,0.30325839]
[1745582802960,1.13808207,606.52,605.19,0.30325839]
[1745582803160,1.13808207,606.51,605.18,0.30325839]
[1745582803359,1.13808207,606.51,605.19,0.30325839]
[1745582803560,1.13808207,606.51,605.3,1.0505215]
[1745582803756,1.13808207,606.51,605.31,0.30325839]
[1745582803957,1.13808207,606.5,605.31,0.30325839]
[1745582804462,1.13808207,606.49,605.31,0.30325839]
[1745582804761,1.13808207,606.49,605.3,1.0505215]
[1745582805062,1.13808207,606.48,605.31,0.30319771]
[1745582805563,1.13808207,606.47,605.31,0.30319771]
[1745582805863,1.13808207,606.47,605.33,1.0505215]
[1745582806064,1.13808207,606.46,605.34,0.30319771]
[1745582806258,1.13808207,606.45,605.34,0.30319771]
[1745582806663,1.13808207,606.44,605.34,0.30319771]
[1745582806958,1.13808207,606.43,605.34,0.30319771]
[1745582807162,1.13808207,606.43,605.35,1.076]
[1745582807367,1.13808207,606.42,605.36,0.30319771]
[1745582808164,1.13808207,606.41,605.36,0.30319771]
[1745582808558,1.13808207,606.4,605.36,0.30319771]
[1745582808963,1.13808207,606.39,605.36,0.30319771]
[1745582809361,1.13808207,606.39,605.35,1.076]
[1745582809564,1.25820987,607.36,605.35,1.076]
[1745582809565,1.13808207,606.38,605.36,0.30318742]
[1745582810059,1.13808207,606.37,605.36,0.30318742]
[1745582810459,1.13808207,606.36,605.36,0.30318742]
[1745582810667,1.13808207,606.35,605.36,0.30318742]
[1745582811065,1.13808207,606.35,605.37,0.30313313]
[1745582811265,1.13808207,606.35,605.35,1.076]
[1745582811266,1.13808207,606.34,605.36,0.30313313]
[1745582811467,1.13808207,606.34,605.37,0.30313313]
[1745582811665,1.13808207,606.33,605.36,0.30313313]
[1745582811968,1.13808207,606.32,605.37,0.30313313]
[1745582812166,1.13808207,606.31,605.38,0.30313313]
[1745582812367,1.13808207,606.31,605.39,0.30313313]
[1745582812568,1.13808207,606.31,605.4,0.30313313]
[1745582812767,1.13808207,606.3,605.4,0.30313313]
[1745582813165,1.13808207,606.29,605.4,0.30313313]
[1745582813569,0.28721047,607.21,605.48,1.0505215]
[1745582813570,1.13808207,606.28,605.48,1.0505215]
[1745582813763,1.13808207,606.27,605.49,0.30313313]
[1745582814071,1.13808207,606.27,605.48,1.0505215]
[1745582814271,1.13808207,606.27,605.49,0.30314088]
[1745582814570,1.13808207,606.26,605.49,0.30314088]
[1745582814771,1.13808207,606.26,605.5,0.851]
[1745582815272,1.13808207,606.25,605.5,0.851]
[1745582815673,1.13808207,606.24,605.5,0.851]
[1745582816373,1.13808207,606.23,605.5,0.851]
[1745582816672,1.13808207,606.22,605.5,0.851]
[1745582817173,1.13808207,606.21,605.5,0.851]
[1745582817874,1.13808207,606.2,605.5,0.851]
[1745582818777,1.13808207,606.19,605.5,0.851]
[1745582819076,1.13808207,606.18,605.5,0.851]
[1745582819277,1.13808207,606.17,605.5,0.851]
[1745582819575,1.13808207,606.16,605.5,0.851]
[1745582819876,1.13808207,606.15,605.5,0.851]
[1745582820886,1.13808207,606.14,605.5,0.851]
[1745582821877,1.13808207,606.13,605.5,0.851]
[1745582822177,1.13808207,606.12,605.5,0.851]
[1745582822377,1.13808207,606.11,605.5,0.851]
[1745582822778,1.13808207,606.1,605.5,0.851]
[1745582823377,1.13808207,606.09,605.5,0.851]
[1745582823574,1.13808207,606.08,605.5,0.851]
[1745582823878,1.13808207,606.08,605.51,0.30310261]
[1745582824075,1.13808207,606.07,605.51,0.30310261]
[1745582824374,1.13808207,606.06,605.5,0.851]
[1745582824580,1.13808207,606.06,605.51,0.30310374]
[1745582824776,1.13808207,606.05,605.51,0.30310374]
[1745582825281,1.13808207,606.04,605.51,0.30310374]
[1745582825975,0.28720928,607.27,605.51,0.30310374]
[1745582826274,1.25820987,607.67,605.52,0.30309555]
[1745582826474,1.13788868,607.26,605.51,0.30309555]
[1745582826673,1.13788868,607.26,605.52,0.30309555]
[1745582826875,1.13788868,607.26,605.51,0.30309555]
[1745582827076,1.13788868,607.25,605.52,0.30309555]
[1745582827279,1.13788868,607.25,605.51,0.30309555]
[1745582827481,1.13788868,607.24,605.51,0.30309555]
[1745582827680,1.13788868,607.23,605.51,0.30309555]
[1745582827976,1.13788868,607.22,605.51,0.30309555]
[1745582828581,1.13788868,607.21,605.51,0.30309555]
[1745582828881,1.13788868,607.2,605.51,0.30309555]
[1745582829075,1.13788868,607.2,605.52,0.30309342]
[1745582829274,1.13788868,607.19,605.5,0.851]
[1745582829680,1.13788868,607.18,605.5,0.851]
[1745582830576,1.13788868,607.18,605.5,1.13806595]
[1745582832278,1.13788868,607.18,605.5,0.851]
[1745582833182,1.13788868,607.17,605.5,0.851]
[1745582833383,1.13788868,607.16,605.5,0.851]
[1745582833588,1.13788868,607.16,605.5,1.13806713]
[1745582834079,0.28706713,607.31,605.5,1.13806713]
[1745582834080,1.13788868,607.15,605.5,1.13806713]
[1745582834284,1.13788868,607.14,605.5,1.13806713]
[1745582834482,1.13788868,607.13,605.5,1.13806713]
[1745582834783,1.13788868,607.12,605.51,0.30311806]
[1745582835483,1.13788868,607.11,605.51,0.30311806]
[1745582835684,1.13788868,607.11,605.5,1.13810147]
[1745582835884,1.13788868,607.1,605.5,1.13810147]
[1745582836085,1.13788868,607.09,605.5,1.13810147]
[1745582836592,1.13788868,607.08,605.5,1.13810147]
[1745582836879,0.28710147,607.19,605.5,1.13810147]
[1745582836880,1.13788868,607.07,605.5,1.13810147]
[1745582837085,1.13788868,607.06,605.5,1.13810147]
[1745582837584,1.13788868,607.05,605.5,1.13810147]
[1745582837781,1.13788868,607.04,605.5,1.13810147]
[1745582838281,1.13788868,607.04,605.5,0.851]
[1745582838587,1.13788868,607.03,605.5,1.13812042]
[1745582838988,1.13788868,607.02,605.5,1.13812042]
[1745582839990,1.13788868,607.01,605.5,1.13812042]
[1745582840387,1.13788868,607.0,605.5,1.13812042]
[1745582840687,1.13788868,606.99,605.5,1.13812042]
[1745582840881,1.13788868,606.98,605.5,1.13812042]
[1745582841287,1.13788868,606.98,605.5,0.851]
[1745582841481,1.13788868,606.97,605.51,0.844]
[1745582841884,1.13788868,606.96,605.51,0.844]
[1745582842588,1.13788868,606.95,605.51,0.844]
[1745582843089,1.13788868,606.94,605.51,0.844]
[1745582843685,1.13788868,606.93,605.51,0.844]
[1745582844385,1.13788868,606.92,605.51,0.844]
[1745582845086,1.13788868,606.91,605.51,0.844]
[1745582845288,1.13788868,606.9,605.51,0.844]
[1745582845587,1.13788868,606.89,605.51,0.844]
[1745582845883,1.13788868,606.88,605.52,1.188]
[1745582846588,1.13788868,606.87,605.52,1.188]
[1745582847091,1.13788868,606.86,605.52,1.188]
[1745582847490,1.13788868,606.85,605.52,1.188]
[1745582847791,1.13788868,606.84,605.52,1.188]
[1745582848691,1.13788868,606.83,605.52,1.188]
[1745582849489,1.13788868,606.82,605.52,1.188]
[1745582850293,1.13788868,606.81,605.52,1.188]
[1745582850786,1.13788868,606.8,605.52,1.188]
[1745582851287,1.13788868,606.79,605.52,2.259]
[1745582851492,1.13788868,606.79,605.53,0.30306065]
[1745582851686,1.13788868,606.78,605.53,0.30306065]
[1745582852087,1.13788868,606.77,605.53,0.30306065]
[1745582852391,1.13788868,606.76,605.53,0.30306065]
[1745582852792,1.13788868,606.75,605.52,2.259]
[1745582852993,1.13788868,606.75,605.53,0.30305317]
[1745582853187,1.13788868,606.74,605.53,0.30305317]
[1745582853587,1.13788868,606.73,605.53,0.30305317]
[1745582854091,1.13788868,606.72,605.53,0.30305317]
[1745582854389,1.13788868,606.71,605.54,0.30305384]
[1745582854593,1.13788868,606.71,605.53,0.30305384]
[1745582854795,1.13788868,606.71,605.52,2.54609437]
[1745582855087,1.13788868,606.71,605.53,0.30305191]
[1745582855286,1.13788868,606.7,605.53,0.30305191]
[1745582855792,1.13788868,606.69,605.53,0.30305191]
[1745582856688,1.13788868,606.68,605.53,0.30305191]
[1745582857094,1.13788868,606.67,605.53,0.30305191]
[1745582857396,1.13788868,606.67,605.52,2.54609792]
[1745582857595,1.13788868,606.67,605.53,0.3030604]
[1745582857795,1.13788868,606.66,605.53,0.3030604]
[1745582858893,1.13788868,606.65,605.53,0.3030604]
[1745582859292,1.13788868,606.64,605.53,0.3030604]
[1745582859895,1.13788868,606.63,605.53,0.3030604]
[1745582860793,1.13788868,606.62,605.53,0.3030604]
[1745582861197,1.13788868,606.61,605.53,0.3030604]
[1745582861600,1.13788868,606.6,605.53,0.3030604]
[1745582862303,1.13788868,606.59,605.54,0.30306263]
[1745582862600,1.13788868,606.58,605.55,0.30306263]
[1745582862800,1.13788868,606.58,605.53,0.30306263]
[1745582863100,1.13788868,606.57,605.54,0.30306263]
[1745582863300,1.13788868,606.57,605.55,0.30306263]
[1745582863496,1.13788868,606.57,605.56,0.30306263]
[1745582863697,1.13788868,606.57,605.53,0.59017476]
[1745582863900,1.13788868,606.56,605.54,0.30306263]
[1745582864603,1.13788868,606.55,605.54,0.30306263]
[1745582865098,1.13788868,606.54,605.54,0.30306263]
[1745582865304,1.13788868,606.54,605.55,0.30305435]
[1745582865603,1.13788868,606.54,605.56,0.30305435]
[1745582865802,1.13788868,606.54,605.53,0.30305435]
[1745582866004,1.13788868,606.53,605.53,0.30305435]
[1745582866599,1.13788868,606.53,605.53,0.59017122]
[1745582866804,1.13788868,606.52,605.54,0.30305435]
[1745582867000,1.13788868,606.51,605.54,0.30305435]
[1745582867403,1.13788868,606.5,605.54,0.30305435]
[1745582867804,1.13788868,606.49,605.54,0.30305435]
[1745582868304,1.13788868,606.48,605.54,0.30305435]
[1745582868504,1.13788868,606.48,605.53,0.30305435]
[1745582868704,1.13788868,606.48,605.54,1.30605435]
[1745582868902,1.13788868,606.48,605.55,0.30305435]
[1745582869100,1.13788868,606.47,605.55,0.30305435]
[1745582869606,1.13788868,606.46,605.55,0.30305435]
[1745582870005,1.13788868,606.46,605.54,1.29012161]
[1745582870207,1.13788868,606.45,605.56,0.30305143]
[1745582870400,1.13788868,606.45,605.57,0.30305143]
[1745582870603,1.13788868,606.44,605.55,0.30305143]
[1745582870801,1.13788868,606.44,605.56,0.30305143]
[1745582870998,1.13788868,606.43,605.57,0.30305143]
[1745582871201,1.13788868,606.43,605.55,0.30305143]
[1745582871408,1.13788868,606.42,605.54,1.003]
[1745582871601,1.13788868,606.42,605.55,0.30305831]
[1745582872206,1.13788868,606.41,605.55,0.30305831]
[1745582872507,1.13788868,606.4,605.55,0.30305831]
[1745582873102,1.13788868,606.39,605.55,0.30305831]
[1745582873706,1.13788868,606.38,605.55,0.30305831]
[1745582874207,1.13788868,606.37,605.55,0.30305831]
[1745582874602,1.13788868,606.36,605.55,0.30305831]
[1745582874807,1.13788868,606.36,605.56,0.30306456]
[1745582875108,1.13788868,606.35,605.54,1.29012634]
[1745582875305,1.13788868,606.35,605.55,0.30306297]
[1745582875704,1.13788868,606.34,605.55,0.30306297]
[1745582876508,1.13788868,606.33,605.55,0.30306297]
[1745582877110,1.13788868,606.32,605.55,0.30306297]
[1745582877805,1.13788868,606.31,605.54,1.003]
[1745582878511,1.13788868,606.31,605.54,1.29014293]
[1745582879012,1.13788868,606.3,605.54,1.29014293]
[1745582879614,1.13788868,606.29,605.54,1.29014293]
[1745582880013,1.13788868,606.28,605.54,1.29014293]
[1745582880313,1.13788868,606.28,605.54,1.003]
[1745582880612,1.13788868,606.27,605.54,2.263]
[1745582881308,1.13788868,606.26,605.54,2.263]
[1745582881614,1.13788868,606.25,605.54,2.55014767]
[1745582882515,1.13788868,606.24,605.54,2.55014767]
[1745582883320,1.13788868,606.23,605.54,2.263]
[1745582883616,1.13788868,606.23,605.54,2.55015122]
[1745582883815,1.13788868,606.22,605.54,2.55015122]
[1745582884210,1.13788868,606.21,605.54,2.55015122]
[1745582884516,1.13788868,606.2,605.54,2.55015122]
[1745582885316,1.13788868,606.19,605.54,2.55015122]
[1745582885518,1.13788868,606.19,605.55,0.30305739]
[1745582886317,1.13788868,606.18,605.55,0.30305739]
[1745582886517,1.13788868,606.18,605.54,2.263]
[1745582886722,1.13788868,606.18,605.55,0.30305571]
[1745582887414,1.13788868,606.17,605.55,0.30305571]
[1745582887712,1.13788868,606.16,605.55,0.30305571]
[1745582888013,1.13788868,606.15,605.55,0.30305571]
[1745582888215,1.13788868,606.14,605.56,0.30304878]
[1745582888414,1.13788868,606.14,605.57,0.30304878]
[1745582888612,1.13788868,606.14,605.58,0.30304878]